fUST/lending_fUST_20250204
["ID","MTS","AMOUNT","RATE_DAILY","PERIOD"]
[351609169,1738660245193,-151.0,0.00017123,2]
[351609171,1738660245202,-151.0,0.00017123,2]
[351609172,1738660245213,-442.837663,0.00017123,2]
[351609174,1738660245222,-442.837663,0.00017123,2]
[351609176,1738660245232,-500.0,0.00017123,2]
[351609178,1738660245241,-500.0,0.00017123,2]
[351609180,1738660245252,-1461.04,0.00017123,2]
[351609182,1738660245263,-500.0,0.00017123,2]
[351609183,1738660245272,-500.0,0.00017123,2]
[351609186,1738660245282,-381.09066318,0.00017123,2]
[351609188,1738660245291,-862.92,0.00017123,2]
[351609190,1738660245301,-500.0,0.00017123,2]
[351609192,1738660245310,-151.0,0.00017123,2]
[351609193,1738660245319,-500.0,0.00017123,2]
[351609195,1738660245329,-994.69,0.00017123,2]
[351609198,1738660245342,-500.0,0.00017123,2]
[351609202,1738660245353,-500.0,0.00017123,2]
[351609205,1738660245362,-2254.25,0.00017123,2]
[351609208,1738660245372,-1371.56,0.00017123,2]
[351609210,1738660245382,-500.0,0.00017123,2]
[351609213,1738660245392,-5294.97,0.00017123,2]
[351609216,1738660245402,-500.0,0.00017123,2]
[351609219,1738660245411,-500.0,0.00017123,2]
[351609222,1738660245422,-8846.79,0.00017123,2]
[351609225,1738660245431,-500.0,0.00017123,2]
[351609228,1738660245441,-746.62,0.00017123,2]
[351609233,1738660245451,-500.0,0.00017123,2]
[351609238,1738660245461,-583.24,0.00017123,2]
[351609241,1738660245470,-950.35,0.00017123,2]
[351609244,1738660245480,-500.0,0.00017123,2]
[351609247,1738660245492,-162.41170645,0.00017123,2]
[351609250,1738660245502,-22682.21,0.00017123,2]
[351609253,1738660245512,-861.77,0.00017123,2]
[351609256,1738660245523,-2751.29,0.00017123,2]
[351609259,1738660245533,-394.90748627,0.00017123,2]
[351609261,1738660245542,-769.32,0.00017123,2]
[351609263,1738660245552,-1234.86,0.00017123,2]
[351609265,1738660245561,-1390.67,0.00017123,2]
[351609267,1738660245571,-619.4,0.00017123,2]
[351609269,1738660245581,-553.48,0.00017123,2]
[351609271,1738660245590,-375.42314634,0.00017123,2]
[351609273,1738660245599,-1302.34,0.00017123,2]
[351609275,1738660245609,-500.0,0.00017123,2]
[351609277,1738660245618,-694.46,0.00017123,2]
[351609279,1738660245627,-13466.28,0.00017123,2]
[351609281,1738660245637,-3672.04,0.00017123,2]
[351609283,1738660245646,-2957.75,0.00017123,2]
[351609285,1738660245655,-500.0,0.00017123,2]
[351609287,1738660245664,-500.0,0.00017123,2]
[351609289,1738660245673,-457.664858,0.00017123,2]
[351609291,1738660245683,-897.58,0.00017123,2]
[351609293,1738660245692,-457.664858,0.00017123,2]
[351609295,1738660245701,-500.0,0.00017123,2]
[351609297,1738660245710,-520.44,0.00017123,2]
[351609299,1738660245720,-1220.61,0.00017123,2]
[351609300,1738660245729,-500.0,0.00017123,2]
[351609302,1738660245739,-500.0,0.00017123,2]
[351609304,1738660245749,-2440.5,0.00017123,2]
[351609306,1738660245759,-500.0,0.00017123,2]
[351609308,1738660245770,-1065.48,0.00017123,2]
[351609310,1738660245779,-5669.71,0.00017123,2]
[351609312,1738660245787,-671.19,0.00017123,2]
[351609314,1738660245798,-1903.12,0.00017123,2]
[351609316,1738660245807,-1011.51,0.00017123,2]
[351609318,1738660245817,-151.0,0.00017123,2]
[351609320,1738660245826,-500.0,0.00017123,2]
[351609322,1738660245836,-908.93,0.00017123,2]
[351609324,1738660245845,-500.0,0.00017123,2]
[351609326,1738660245855,-500.0,0.00017123,2]
[351609328,1738660245864,-1198.82,0.00017123,2]
[351609330,1738660245874,-312.37,0.00017123,2]
[351609333,1738660245890,-2408.72,0.00017123,2]
[351609335,1738660245905,-500.0,0.00017123,2]
[351609337,1738660245915,-500.0,0.00017123,2]
[351609339,1738660245926,-822.01,0.00017123,2]
[351609340,1738660245936,-969.13,0.00017123,2]
[351609342,1738660245947,-500.0,0.00017123,2]
[351609344,1738660245958,-595.33796419,0.00017123,2]
[351609347,1738660245968,-500.0,0.00017123,2]
[351609349,1738660245979,-1072.432892,0.00017123,2]
[351609351,1738660245990,-500.0,0.00017123,2]
[351609352,1738660246002,-1072.432892,0.00017123,2]
[351609353,1738660246013,-565.62213839,0.00017123,2]
[351609354,1738660246023,-2142.61301182,0.0001716,2]
[351609355,1738660246035,-151.0,0.0001716,2]
[351609356,1738660246046,-500.0,0.00017173,2]
[351609357,1738660246056,-306.0,0.00017178,2]
[351609358,1738660246066,-2556.36612179,0.000172,2]
[351609359,1738660246078,-17869.52,0.000172,2]
[351609360,1738660246089,-151.0,0.000172,2]
[351609361,1738660246099,-151.0,0.000172,2]
[351609362,1738660246109,-151.0,0.000172,2]
[351609363,1738660246119,-151.0,0.000172,2]
[351609364,1738660246129,-151.0,0.000172,2]
[351609365,1738660246139,-151.0,0.000172,2]
[351609366,1738660246149,-232.062615,0.000172,2]
[351609367,1738660246159,-153.55854776,0.00017233,2]
[351609368,1738660246170,-1072.546387,0.00017242,2]
[351609369,1738660246179,-1072.546387,0.00017242,2]
[351609370,1738660246190,-668.153,0.00017245,2]
[351609371,1738660246200,-151.0,0.00017245,2]
[351609372,1738660246210,-1200.0,0.00017245,2]
[351609373,1738660246220,-1394.43365856,0.0001726,2]
[351609374,1738660246230,-151.0,0.0001726,2]
[351609375,1738660246240,-151.0,0.0001726,2]
[351609376,1738660246250,-500.0,0.0001726,2]
[351609377,1738660246260,-500.0,0.0001726,2]
[351609378,1738660246274,-500.0,0.0001726,2]
[351609379,1738660246284,-500.0,0.0001726,2]
[351609380,1738660246294,-500.0,0.0001726,2]
[351609381,1738660246304,-500.0,0.0001726,2]
[351609382,1738660246314,-345.06530119,0.0001726,2]
[351609383,1738660246324,-500.0,0.0001726,2]
[351609384,1738660246334,-500.0,0.0001726,2]
[351609387,1738660246345,-603.67,0.0001726,2]
[351609389,1738660246355,-553.11532538,0.0001726,2]
[351609390,1738660246365,-223.82304717,0.0001726,2]
[351609392,1738660246374,-174.184778,0.0001726,2]
[351609394,1738660246383,-174.184778,0.0001726,2]
[351609405,1738660246513,-510.16,0.0001726,2]
[351609407,1738660246524,-614.16,0.0001726,2]
[351609409,1738660246533,-500.0,0.0001726,2]
[351609412,1738660246542,-980.64,0.0001726,2]
[351609414,1738660246552,-955.12,0.0001726,2]
[351609415,1738660246561,-500.0,0.0001726,2]
[351609416,1738660246570,-151.0,0.0001726,2]
[351609417,1738660246579,-500.0,0.0001726,2]
[351609418,1738660246588,-291.425019,0.0001726,2]
[351609419,1738660246598,-500.0,0.0001726,2]
[351609420,1738660246609,-867.03,0.0001726,2]
[351609421,1738660246625,-151.0,0.0001726,2]
[351609422,1738660246644,-151.0,0.0001726,2]
[351609423,1738660246661,-442.837663,0.0001726,2]
[351609424,1738660246670,-442.837663,0.0001726,2]
[351609425,1738660246679,-500.0,0.0001726,2]
[351609426,1738660246689,-500.0,0.0001726,2]
[351609427,1738660246698,-1461.04,0.0001726,2]
[351609428,1738660246707,-500.0,0.0001726,2]
[351609429,1738660246717,-500.0,0.0001726,2]
[351609430,1738660246729,-862.92,0.0001726,2]
[351609431,1738660246738,-500.0,0.0001726,2]
[351609432,1738660246748,-151.0,0.0001726,2]
[351609433,1738660246757,-500.0,0.0001726,2]
[351609434,1738660246768,-994.69,0.0001726,2]
[351609435,1738660246777,-500.0,0.0001726,2]
[351609436,1738660246787,-570.88527049,0.0001726,2]
[351609437,1738660246796,-2254.25,0.0001726,2]
[351609438,1738660246806,-1371.56,0.0001726,2]
[351609439,1738660246816,-566.83922036,0.0001726,2]
[351609440,1738660246826,-5294.97,0.0001726,2]
[351609441,1738660246835,-8846.79,0.0001726,2]
[351609442,1738660246845,-500.0,0.0001726,2]
[351609443,1738660246854,-746.62,0.0001726,2]
[351609444,1738660246863,-500.0,0.0001726,2]
[351609445,1738660246873,-583.24,0.0001726,2]
[351609446,1738660246883,-950.35,0.0001726,2]
[351609447,1738660246893,-22682.21,0.0001726,2]
[351609448,1738660246902,-861.77,0.0001726,2]
[351609449,1738660246913,-2751.29,0.0001726,2]
[351609450,1738660246922,-769.32,0.0001726,2]
[351609451,1738660246932,-1234.86,0.0001726,2]
[351609452,1738660246943,-1390.67,0.0001726,2]
[351609453,1738660246952,-553.48,0.0001726,2]
[351609454,1738660246962,-619.4,0.0001726,2]
[351609455,1738660246972,-1302.34,0.0001726,2]
[351609456,1738660246981,-500.0,0.0001726,2]
[351609457,1738660246991,-694.46,0.0001726,2]
[351609458,1738660247005,-13466.28,0.0001726,2]
[351609459,1738660247014,-3672.04,0.0001726,2]
[351609460,1738660247024,-2957.75,0.0001726,2]
[351609461,1738660247035,-500.0,0.0001726,2]
[351609462,1738660247045,-500.0,0.0001726,2]
[351609463,1738660247054,-457.664858,0.0001726,2]
[351609464,1738660247064,-897.58,0.0001726,2]
[351609465,1738660247085,-457.664858,0.0001726,2]
[351609466,1738660247095,-500.0,0.0001726,2]
[351609467,1738660247106,-1220.61,0.0001726,2]
[351609468,1738660247116,-151.0,0.0001726,2]
[351609469,1738660247127,-500.0,0.0001726,2]
[351609470,1738660247137,-500.0,0.0001726,2]
[351609471,1738660247148,-2440.5,0.0001726,2]
[351609472,1738660247158,-1065.48,0.0001726,2]
[351609473,1738660247169,-5669.71,0.0001726,2]
[351609474,1738660247178,-671.19,0.0001726,2]
[351609475,1738660247189,-1903.12,0.0001726,2]
[351609476,1738660247199,-1011.51,0.0001726,2]
[351609477,1738660247209,-500.0,0.0001726,2]
[351609478,1738660247219,-151.0,0.0001726,2]
[351609479,1738660247230,-908.93,0.0001726,2]
[351609480,1738660247241,-621.84,0.0001726,2]
[351609481,1738660247251,-500.0,0.0001726,2]
[351609482,1738660247261,-1198.82,0.0001726,2]
[351609483,1738660247273,-2408.72,0.0001726,2]
[351609484,1738660247283,-500.0,0.0001726,2]
[351609485,1738660247293,-500.0,0.0001726,2]
[351609486,1738660247303,-822.01,0.0001726,2]
[351609487,1738660247313,-969.13,0.0001726,2]
[351609488,1738660247327,-608.49859521,0.0001726,2]
[351609489,1738660247345,-500.0,0.0001726,2]
[351609490,1738660247361,-500.0,0.0001726,2]
[351609491,1738660247378,-1072.432892,0.0001726,2]
[351609492,1738660247392,-1072.432892,0.0001726,2]
[351609493,1738660247410,-500.0,0.0001726,2]
[351609494,1738660247427,-226.4670325,0.0001726,2]
[351609495,1738660247444,-1000.0,0.00017321,2]
[351609496,1738660247457,-1000.0,0.00017321,2]
[351609497,1738660247472,-523.53733128,0.00017324,2]
[351609498,1738660247489,-500.0,0.00017332,2]
[351609499,1738660247503,-1000.0,0.00017383,2]
[351609500,1738660247517,-1000.0,0.00017385,2]
[351609501,1738660247531,-1000.0,0.00017392,2]
[351609502,1738660247548,-221.20386291,0.00017396,2]
[351609503,1738660247563,-151.0,0.00017397,2]
[351609504,1738660247579,-151.346963,0.00017397,2]
[351609505,1738660247595,-172.356896,0.00017397,2]
[351609506,1738660247605,-172.356896,0.00017397,2]
[351609507,1738660247618,-500.0,0.00017397,2]
[351609508,1738660247638,-500.0,0.00017397,2]
[351609509,1738660247651,-330.04514413,0.00017397,2]
[351609510,1738660247664,-500.0,0.00017397,2]
[351609511,1738660247679,-153.240663,0.00017397,2]
[351609512,1738660247691,-151.0,0.00017397,2]
[351609513,1738660247704,-500.0,0.00017397,2]
[351609514,1738660247717,-151.0,0.00017397,2]
[351609515,1738660247730,-151.0,0.00017397,2]
[351609516,1738660247744,-151.0,0.00017397,2]
[351609517,1738660247756,-193.74557801,0.00017397,2]
[351609518,1738660247771,-500.0,0.00017397,2]
[351609519,1738660247785,-500.0,0.00017397,2]
[351609520,1738660247800,-603.67,0.00017397,2]
[351609521,1738660247815,-1072.546387,0.00017397,2]
[351609522,1738660247831,-174.184778,0.00017397,2]
[351609523,1738660247844,-1072.546387,0.00017397,2]
[351609524,1738660247858,-174.184778,0.00017397,2]
[351609525,1738660247871,-614.16,0.00017397,2]
[351609526,1738660247884,-500.0,0.00017397,2]
[351609527,1738660247897,-309.7806413,0.00017397,2]
[351609528,1738660248978,-162.34055892,0.000164,2]
[351609529,1738660248990,-1639.61,0.00016712,2]
[351609530,1738660249003,-14436.27216027,0.00016849,5]
[351609531,1738660249013,-3507.91,0.00016849,2]
[351609532,1738660249026,-1639.61,0.00016849,2]
[351609533,1738660249041,-3507.91,0.00016986,2]
[351609534,1738660249054,-1639.61,0.00016986,2]
[351609535,1738660249068,-3507.91,0.00017123,2]
[351609536,1738660249087,-1639.61,0.00017123,2]
[351609537,1738660249098,-3507.91,0.0001726,2]
[351609538,1738660249109,-1639.61,0.0001726,2]
[351609539,1738660249122,-500.0,0.0001726,2]
[351609540,1738660249132,-670.8593587,0.00017397,2]
[351609541,1738660249141,-955.12,0.00017397,2]
[351609542,1738660249151,-500.0,0.00017397,2]
[351609543,1738660249161,-151.0,0.00017397,2]
[351609544,1738660249172,-500.0,0.00017397,2]
[351609545,1738660249182,-500.0,0.00017397,2]
[351609546,1738660249193,-867.03,0.00017397,2]
[351609547,1738660249212,-442.837663,0.00017397,2]
[351609548,1738660249223,-442.837663,0.00017397,2]
[351609549,1738660249234,-500.0,0.00017397,2]
[351609550,1738660249251,-500.0,0.00017397,2]
[351609551,1738660249260,-1461.04,0.00017397,2]
[351609552,1738660249274,-500.0,0.00017397,2]
[351609553,1738660249286,-500.0,0.00017397,2]
[351609554,1738660249299,-862.92,0.00017397,2]
[351609555,1738660249312,-500.0,0.00017397,2]
[351609556,1738660249323,-500.0,0.00017397,2]
[351609557,1738660249335,-994.69,0.00017397,2]
[351609558,1738660249345,-500.0,0.00017397,2]
[351609559,1738660249356,-2254.25,0.00017397,2]
[351609560,1738660249367,-1371.56,0.00017397,2]
[351609561,1738660249378,-5294.97,0.00017397,2]
[351609562,1738660249388,-484.28451177,0.00017397,2]
[351609563,1738660249397,-746.62,0.00017397,2]
[351609564,1738660249407,-500.0,0.00017397,2]
[351609565,1738660249419,-583.24,0.00017397,2]
[351609566,1738660249428,-950.35,0.00017397,2]
[351609567,1738660249439,-22682.21,0.00017397,2]
[351609568,1738660249449,-861.77,0.00017397,2]
[351609569,1738660249459,-2751.29,0.00017397,2]
[351609570,1738660249469,-769.32,0.00017397,2]
[351609571,1738660249479,-1234.86,0.00017397,2]
[351609572,1738660249489,-1390.67,0.00017397,2]
[351609573,1738660249499,-553.48,0.00017397,2]
[351609574,1738660249509,-619.4,0.00017397,2]
[351609575,1738660249523,-1302.34,0.00017397,2]
[351609576,1738660249534,-299.35692336,0.00017397,2]
[351609577,1738660249544,-694.46,0.00017397,2]
[351609578,1738660249554,-13466.28,0.00017397,2]
[351609579,1738660249563,-3672.04,0.00017397,2]
[351609580,1738660249573,-2957.75,0.00017397,2]
[351609581,1738660249583,-500.0,0.00017397,2]
[351609582,1738660249593,-500.0,0.00017397,2]
[351609583,1738660249603,-457.664858,0.00017397,2]
[351609584,1738660249613,-897.58,0.00017397,2]
[351609585,1738660249622,-457.664858,0.00017397,2]
[351609586,1738660249632,-500.0,0.00017397,2]
[351609587,1738660249641,-1220.61,0.00017397,2]
[351609588,1738660249651,-500.0,0.00017397,2]
[351609589,1738660249660,-475.2486598,0.00017397,2]
[351609590,1738660249670,-2440.5,0.00017397,2]
[351609591,1738660249680,-1065.48,0.00017397,2]
[351609592,1738660249690,-5669.71,0.00017397,2]
[351609593,1738660249700,-671.19,0.00017397,2]
[351609594,1738660249710,-1903.12,0.00017397,2]
[351609595,1738660249720,-1011.51,0.00017397,2]
[351609596,1738660249731,-500.0,0.00017397,2]
[351609597,1738660249740,-908.93,0.00017397,2]
[351609598,1738660249749,-500.0,0.00017397,2]
[351609599,1738660249759,-1198.82,0.00017397,2]
[351609600,1738660249769,-151.0,0.00017397,2]
[351609601,1738660249778,-2408.72,0.00017397,2]
[351609602,1738660249787,-500.0,0.00017397,2]
[351609603,1738660249797,-500.0,0.00017397,2]
[351609604,1738660249806,-822.01,0.00017397,2]
[351609605,1738660249816,-969.13,0.00017397,2]
[351609606,1738660249825,-500.0,0.00017397,2]
[351609607,1738660249835,-500.0,0.00017397,2]
[351609608,1738660249846,-3507.91,0.00017397,2]
[351609609,1738660249856,-1639.61,0.00017397,2]
[351609610,1738660249866,-151.0,0.000174,2]
[351609611,1738660249876,-1000.0,0.000174,2]
[351609612,1738660249885,-1000.0,0.00017402,2]
[351609613,1738660249895,-1000.0,0.00017404,2]
[351609614,1738660249905,-1000.0,0.00017406,2]
[351609615,1738660249915,-1000.0,0.00017409,2]
[351609616,1738660249924,-256.56217126,0.0001741,2]
[351609617,1738660249934,-1000.0,0.00017418,2]
[351609618,1738660249944,-609.7764573,0.00017432,2]
[351609619,1738660249953,-1000.0,0.00017432,2]
[351609620,1738660249963,-151.0,0.00017434,2]
[351609621,1738660249973,-1000.0,0.00017464,2]
[351609622,1738660249983,-1000.0,0.00017467,2]
[351609623,1738660249995,-1000.0,0.00017468,2]
[351609624,1738660250008,-151.0,0.000175,2]
[351609625,1738660250019,-151.0,0.000175,2]
[351609626,1738660250028,-1003.0,0.000175,7]
[351609627,1738660250039,-151.0,0.000175,2]
[351609628,1738660250048,-621.0,0.000175,2]
[351609629,1738660250057,-152.331516,0.000175,2]
[351609630,1738660250066,-1000.0,0.00017504,2]
[351609631,1738660250077,-1000.0,0.00017504,2]
[351609632,1738660250086,-1000.0,0.00017504,2]
[351609633,1738660250096,-1000.0,0.00017517,2]
[351609634,1738660250105,-1000.0,0.00017518,2]
[351609635,1738660250115,-608.81427126,0.00017524,2]
[351609636,1738660250126,-160.44172471,0.00017533,2]
[351609637,1738660250135,-151.0,0.00017534,2]
[351609638,1738660250145,-224.662925,0.00017534,2]
[351609639,1738660250154,-500.0,0.00017534,2]
[351609640,1738660250164,-500.0,0.00017534,2]
[351609641,1738660250174,-500.0,0.00017534,2]
[351609642,1738660250183,-500.0,0.00017534,2]
[351609643,1738660250193,-151.0,0.00017534,2]
[351609644,1738660250202,-151.0,0.00017534,2]
[351609645,1738660250211,-151.0,0.00017534,2]
[351609646,1738660250221,-500.0,0.00017534,2]
[351609647,1738660250230,-500.0,0.00017534,2]
[351609648,1738660250239,-603.67,0.00017534,2]
[351609649,1738660250249,-1072.546387,0.00017534,2]
[351609650,1738660250258,-174.184778,0.00017534,2]
[351609651,1738660250268,-1072.546387,0.00017534,2]
[351609652,1738660250277,-174.184778,0.00017534,2]
[351609653,1738660250286,-614.16,0.00017534,2]
[351609654,1738660250296,-446.29785688,0.00017534,2]
[351609655,1738660250305,-980.64,0.00017534,2]
[351609656,1738660250314,-955.12,0.00017534,2]
[351609657,1738660250324,-500.0,0.00017534,2]
[351609658,1738660250334,-151.0,0.00017534,2]
[351609659,1738660250343,-500.0,0.00017534,2]
[351609660,1738660250353,-500.0,0.00017534,2]
[351609661,1738660250362,-867.03,0.00017534,2]
[351609662,1738660250371,-442.837663,0.00017534,2]
[351609663,1738660250381,-442.837663,0.00017534,2]
[351609664,1738660250390,-500.0,0.00017534,2]
[351609665,1738660250399,-500.0,0.00017534,2]
[351609666,1738660250409,-1461.04,0.00017534,2]
[351609667,1738660250418,-500.0,0.00017534,2]
[351609668,1738660250427,-500.0,0.00017534,2]
[351609669,1738660250436,-862.92,0.00017534,2]
[351609670,1738660250445,-500.0,0.00017534,2]
[351609671,1738660250454,-500.0,0.00017534,2]
[351609672,1738660250463,-994.69,0.00017534,2]
[351609673,1738660250473,-566.9,0.00017534,2]
[351609674,1738660250482,-2254.25,0.00017534,2]
[351609675,1738660250491,-1371.56,0.00017534,2]
[351609676,1738660250501,-5294.97,0.00017534,2]
[351609677,1738660250510,-746.62,0.00017534,2]
[351609678,1738660250522,-500.0,0.00017534,2]
[351609679,1738660250532,-583.24,0.00017534,2]
[351609680,1738660250541,-950.35,0.00017534,2]
[351609681,1738660250551,-22682.21,0.00017534,2]
[351609682,1738660250560,-861.77,0.00017534,2]
[351609683,1738660250570,-2751.29,0.00017534,2]
[351609684,1738660250579,-769.32,0.00017534,2]
[351609685,1738660250588,-1234.86,0.00017534,2]
[351609686,1738660250597,-1390.67,0.00017534,2]
[351609687,1738660250606,-553.48,0.00017534,2]
[351609688,1738660250616,-619.4,0.00017534,2]
[351609689,1738660250625,-1302.34,0.00017534,2]
[351609690,1738660250635,-694.46,0.00017534,2]
[351609691,1738660250644,-13466.28,0.00017534,2]
[351609692,1738660250654,-3672.04,0.00017534,2]
[351609693,1738660250663,-2957.75,0.00017534,2]
[351609694,1738660250673,-500.0,0.00017534,2]
[351609695,1738660250682,-500.0,0.00017534,2]
[351609696,1738660250691,-457.664858,0.00017534,2]
[351609697,1738660250701,-897.58,0.00017534,2]
[351609698,1738660250711,-457.664858,0.00017534,2]
[351609699,1738660250720,-500.0,0.00017534,2]
[351609700,1738660250729,-1220.61,0.00017534,2]
[351609701,1738660250739,-500.0,0.00017534,2]
[351609702,1738660250748,-2440.5,0.00017534,2]
[351609703,1738660250758,-1065.48,0.00017534,2]
[351609704,1738660250767,-5669.71,0.00017534,2]
[351609705,1738660250778,-671.19,0.00017534,2]
[351609706,1738660250787,-1903.12,0.00017534,2]
[351609707,1738660250796,-1011.51,0.00017534,2]
[351609708,1738660250909,-500.0,0.00017534,2]
[351609709,1738660250919,-908.93,0.00017534,2]
[351609710,1738660250929,-500.0,0.00017534,2]
[351609711,1738660250938,-1198.82,0.00017534,2]
[351609712,1738660250947,-151.0,0.00017534,2]
[351609713,1738660250957,-2408.72,0.00017534,2]
[351609714,1738660250966,-500.0,0.00017534,2]
[351609715,1738660250977,-822.01,0.00017534,2]
[351609716,1738660250986,-969.13,0.00017534,2]
[351609717,1738660250996,-308.40023249,0.00017534,2]
[351609718,1738660251010,-500.0,0.00017534,2]
[351609719,1738660251021,-1072.432892,0.00017534,2]
[351609720,1738660251031,-500.0,0.00017534,2]
[351609721,1738660251040,-1072.432892,0.00017534,2]
[351609722,1738660251050,-3507.91,0.00017534,2]
[351609723,1738660251059,-1639.61,0.00017534,2]
[351609724,1738660251068,-1000.0,0.00017555,2]
[351609725,1738660251078,-1000.0,0.00017562,2]
[351609726,1738660251088,-1000.0,0.00017565,2]
[351609727,1738660251098,-310.0,0.0001757,2]
[351609728,1738660251107,-162.0,0.00017571,2]
[351609729,1738660251117,-162.0,0.00017571,2]
[351609730,1738660251126,-162.0,0.00017571,2]
[351609731,1738660251135,-162.0,0.00017571,2]
[351609732,1738660251145,-166.94,0.00017571,2]
[351609733,1738660251155,-1000.0,0.00017621,2]
[351609734,1738660251165,-508.4641521,0.00017629,2]
[351609735,1738660251175,-162.954762,0.0001764,15]
[351609736,1738660251184,-172.356896,0.00017671,2]
[351609737,1738660251193,-172.356896,0.00017671,2]
[351609738,1738660251202,-343.67616132,0.00017671,2]
[351609739,1738660251212,-500.0,0.00017671,2]
[351609740,1738660251221,-500.0,0.00017671,2]
[351609741,1738660251232,-151.0,0.00017671,2]
[351609742,1738660251241,-500.0,0.00017671,2]
[351609743,1738660251252,-500.0,0.00017671,2]
[351609744,1738660251262,-164.8,0.00017671,2]
[351609745,1738660251274,-603.67,0.00017671,2]
[351609746,1738660251284,-1072.546387,0.00017671,2]
[351609747,1738660251293,-1072.546387,0.00017671,2]
[351609748,1738660251303,-614.16,0.00017671,2]
[351609749,1738660251312,-980.64,0.00017671,2]
[351609750,1738660251322,-955.12,0.00017671,2]
[351609751,1738660251333,-500.0,0.00017671,2]
[351609752,1738660251342,-214.25,0.00017671,2]
[351609753,1738660251352,-500.0,0.00017671,2]
[351609754,1738660251362,-867.03,0.00017671,2]
[351609755,1738660251372,-213.74965417,0.00017671,2]
[351609756,1738660251381,-500.0,0.00017671,2]
[351609757,1738660251391,-500.0,0.00017671,2]
[351609758,1738660251403,-1461.04,0.00017671,2]
[351609759,1738660251419,-500.0,0.00017671,2]
[351609760,1738660251433,-378.27194955,0.00017671,2]
[351609761,1738660251448,-862.92,0.00017671,2]
[351609762,1738660251458,-500.0,0.00017671,2]
[351609763,1738660251468,-151.0,0.00017671,2]
[351609764,1738660251477,-500.0,0.00017671,2]
[351609765,1738660251487,-994.69,0.00017671,2]
[351609766,1738660251498,-2254.25,0.00017671,2]
[351609767,1738660251508,-1371.56,0.00017671,2]
[351609768,1738660251519,-5294.97,0.00017671,2]
[351609769,1738660251530,-746.62,0.00017671,2]
[351609770,1738660251540,-500.0,0.00017671,2]
[351609771,1738660251550,-583.24,0.00017671,2]
[351609772,1738660251559,-950.35,0.00017671,2]
[351609773,1738660251569,-22682.21,0.00017671,2]
[351609774,1738660251580,-861.77,0.00017671,2]
[351609775,1738660251591,-2751.29,0.00017671,2]
[351609776,1738660251601,-769.32,0.00017671,2]
[351609777,1738660251612,-1234.86,0.00017671,2]
[351609778,1738660251623,-1390.67,0.00017671,2]
[351609779,1738660251632,-553.48,0.00017671,2]
[351609780,1738660251642,-619.4,0.00017671,2]
[351609781,1738660251651,-1302.34,0.00017671,2]
[351609782,1738660251662,-694.46,0.00017671,2]
[351609783,1738660251672,-13466.28,0.00017671,2]
[351609784,1738660251683,-3672.04,0.00017671,2]
[351609785,1738660251692,-2957.75,0.00017671,2]
[351609786,1738660251702,-500.0,0.00017671,2]
[351609787,1738660251713,-500.0,0.00017671,2]
[351609788,1738660251723,-897.58,0.00017671,2]
[351609789,1738660251734,-500.0,0.00017671,2]
[351609790,1738660251744,-1220.61,0.00017671,2]